Cogmind - Beta 16 @@@ ROGUE MODE // 2025.11.05 @ 15:42:35 Player: FAQ Result: Destroyed by as-88550 with Assembled Rifle Performance ------------- Evolutions (0) 0 Regions Visited (4) 800 Robots Destroyed (35) 175 Value Destroyed (462) 462 Prototype IDs (23) 460 Alien Tech Used (0) 0 Bonus (367) 367 TOTAL SCORE: 2264 Bonus ------- Follower Combat Kills 67 Aligned with FarCom 300 Cogmind --------- Core Integrity 0/250 Matter 252/300 Energy 150/160 System Corruption 0% Temperature Cool (24) Movement Core (500) Ox9 Location -9/Mines Parts ------- > --- POWER (1) -------- Light Nuclear Core > --- PROPULSION (2) --- (None) > --- UTILITY (2) ------ Large Storage Unit Visual Processing Unit > --- WEAPON (2) ------- Medium Laser Grenade Launcher > --- INVENTORY (15) --- Light Ion Engine Flight Unit Heat Sink Large Storage Unit Weapon Cycler Latent Energy Streamer Assault Rifle Remote Datajack Peak State ------------ > --- POWER ------------ Light Nuclear Core > --- PROPULSION ------- Wheel Compact Wheel > --- UTILITY ---------- Large Storage Unit Visual Processing Unit > --- WEAPON ----------- Medium Laser Grenade Launcher > --- INVENTORY -------- Light Ion Engine Flight Unit Heat Sink Large Storage Unit Weapon Cycler Latent Energy Streamer Assault Rifle Remote Datajack [Rating: 12] Favorites ----------- Power Ion Engine Engine Ion Engine Power Core Light Nuclear Core Propulsion Light Treads Treads Light Treads Wheel Wheel Flight Unit Flight Unit Utility Visual Processing Unit Storage Large Storage Unit Processor Visual Processing Unit Weapon Medium Laser Energy Gun Medium Laser Launcher Grenade Launcher Build | -11 -10 -10 -10 -9 ------- Run | Yrd Mat Min Exi Min Slots Evolved . | . . . . . Power . | . . . . . Propulsion . | . . . . . Utility . | . . . . . Weapon . | . . . . . Parts Attached 14 | 6 3 1 . 4 Power 3 | 1 1 . . 1 Engine 2 | 1 1 . . . Core 1 | . . . . 1 Reactor . | . . . . . Propulsion 5 | 2 . . . 3 Treads 2 | 2 . . . . Leg . | . . . . . Wheel 2 | . . . . 2 Hover . | . . . . . Flight 1 | . . . . 1 Utility 3 | 1 2 . . . Device . | . . . . . Storage 2 | 1 1 . . . Processor 1 | . 1 . . . Hackware . | . . . . . Protection . | . . . . . Artifact . | . . . . . Weapon 3 | 2 . 1 . . Energy Gun 2 | 2 . . . . Energy Cannon . | . . . . . Ballistic Gun . | . . . . . Ballistic Cannon . | . . . . . Launcher 1 | . . 1 . . Special Weapon . | . . . . . Impact Weapon . | . . . . . Slashing Weapon . | . . . . . Piercing Weapon . | . . . . . Special Melee Weapon . | . . . . . Unidentified Prototypes . | . . . . . Parts Lost 6 | . . 1 . 5 Power 1 | . . . . 1 Propulsion 4 | . . . . 4 Utility . | . . . . . Weapon 1 | . . 1 . . Highest Loss Streak 2 | . . 1 . 2 To Critical Strikes . | . . . . . Average Backups 4 | 1 3 5 5 6 Power 1 | . 1 1 2 1 Propulsion . | . . . . . Utility 1 | . . 2 2 2 Weapon 1 | . 1 1 1 2 Tool/Special . | . . . . . Unused Backups 6 | . . . . 6 Power 1 | . . . . 1 Propulsion . | . . . . . Utility 2 | . . . . 2 Weapon 2 | . . . . 2 Tool/Special 1 | . . . . 1 Average Slot Usage (%) 97 | . 97 100 100 83 Engine 13 | . 14 14 14 8 Treads 24 | . 28 28 28 2 Wheel 1 | . . . . 13 Storage 14 | . 14 14 14 14 Processor 13 | . 11 14 14 14 Energy Gun 22 | . 28 26 14 14 Launcher 5 | . . 1 14 10 Peak Build Rating 12 | 6 8 8 9 12 Average Rating 8 | 4 7 7 8 8 On Entrance 6 | . 6 8 8 9 Avg Prop Armor Cover (%) . | . . . . . Naked Turns . | . . . . . Heaviest Build 30 | 13 28 30 30 30 Greatest Support 40 | 40 40 40 40 40 Greatest Overweight (x) 9 | . . . . 9 Average Overweight (x) . | . . . . 2 Largest Inventory Capacity 15 | 8 15 15 15 15 Average Capacity 13 | 7 11 15 15 15 Most Carried 8 | 2 5 6 6 8 Average Carried 4 | 1 3 5 5 6 Final Capacity 15 | 8 15 15 15 15 Final Carried 8 | 2 5 5 6 8 Class Distribution -------------------- 96% | Mutant 3% | Scavenger-Mutant Dominant Class ---------------- Mutant | -10/Materials Mutant | -10/Mines Mutant | -10/Exiles Mutant | -9/Mines Resources | -11 -10 -10 -10 -9 ----------- Run | Yrd Mat Min Exi Min Matter Collected 397 | 146 144 19 . 88 Remotely . | . . . . . Salvage Created 715 | 73 278 143 . 221 Parts 54 | . 21 16 . 17 Haulers Intercepted . | . . . . . Recyclers Shooed . | . . . . . Parts Field Recycled . | . . . . . Retrieved Matter . | . . . . . Parts Self-Destructed . | . . . . . Prevented . | . . . . . Parts Restored . | . . . . . Kills | -11 -10 -10 -10 -9 ------- Run | Yrd Mat Min Exi Min Combat Hostiles Destroyed 28 | . 8 8 . 12 Guns 21 | . 8 7 . 6 AOE 7 | . . 1 . 6 Classes Destroyed 8 | 1 4 2 . 1 Worker 1 | . . 1 . . Builder 2 | . 1 . . 1 Tunneler 2 | . . 1 . 1 Recycler 3 | 1 1 . . 1 Watcher 1 | . 1 . . . Swarmer 21 | . 6 8 . 7 Grunt 5 | . 2 . . 3 Assembled 2 | . . . . 2 Best Kill Streak 8 | 1 8 3 . 5 Combat Bots Only 6 | . 6 3 . 5 Max Kills in Single Turn 2 | 1 2 2 . 2 Gunslinging 1 | . 1 . . . Exploded 2 | . . 1 . 2 Melee . | . . . . . Uniques/NPCs Destroyed . | . . . . . Combat | -11 -10 -10 -10 -9 -------- Run | Yrd Mat Min Exi Min Hostile Shots Fired 140 | . 60 33 . 47 Missed 38 | . 19 6 . 13 Hits 102 | . 41 27 . 34 Projectile 102 | . 41 27 . 34 Critical Strikes 1 | . . 1 . . Damage Taken 948 | . 357 235 . 356 Core 257 | . 82 53 . 122 Absorbed by Shields . | . . . . . Core Remaining (%) 100 | 100 . . . . Volleys Fired 60 | 2 20 12 . 26 Largest 2 | 2 2 2 . 2 Hottest 90 | 90 90 90 . 80 Shots Fired 101 | 4 37 23 . 37 Gun 89 | 4 37 22 . 26 Cannon . | . . . . . Launcher 12 | . . 1 . 11 Special . | . . . . . Kinetic . | . . . . . Thermal 89 | 4 37 22 . 26 Explosive 12 | . . 1 . 11 Electromagnetic . | . . . . . Robot Hit Streak 7 | 1 5 3 . 7 Robot Miss Streak 6 | 1 6 3 . 1 Penetration Max . | . . . . . Secondary Targets 3 | . 3 . . . Max Gunslinging Chain 1 | . 1 . . . Shots Hit Robots 56 | 2 22 10 . 22 Core Hits 48 | 2 14 10 . 22 Critical Kills . | . . . . . Critical Parts Destroyed . | . . . . . Critical Strikes 3 | . 2 1 . . Burn 3 | . 2 1 . . Melee Attacks . | . . . . . Impact . | . . . . . Slashing . | . . . . . Piercing . | . . . . . Sneak Attacks . | . . . . . Combat Hostiles . | . . . . . Follow-up Attacks . | . . . . . Damage Inflicted 1344 | 25 280 231 . 808 Guns 656 | 25 280 140 . 211 Cannons . | . . . . . Explosions 688 | . . 91 . 597 Melee . | . . . . . Ramming . | . . . . . Kinetic . | . . . . . Thermal 656 | 25 280 140 . 211 Explosive 688 | . . 91 . 597 Electromagnetic . | . . . . . Impact . | . . . . . Slashing . | . . . . . Piercing . | . . . . . Highest Corruption . | . . . . . Average Corruption . | . . . . . Corruption Purged . | . . . . . Corruption Blocked . | . . . . . Overload Shots . | . . . . . Overflow Damage 11 | . . . . 11 Projectiles . | . . . . . Explosions 11 | . . . . 11 Melee . | . . . . . Knockbacks . | . . . . . Impact . | . . . . . Kinetic . | . . . . . Secondary . | . . . . . Self-Inflicted Damage 61 | . . . . 61 Shots 3 | . . . . 3 Rammed . | . . . . . Targets Rammed . | . . . . . Kicked . | . . . . . Crushed . | . . . . . Highest Temperature 258 | 60 258 120 . 161 Average Temperature 58 | 31 84 36 . 46 Received Heat Transfer 111 | . 48 18 . 45 Effects 2 | . 2 . . . Interference 2 | . 2 . . . Siege Activations . | . . . . . Martial Activations . | . . . . . Shielding Activations . | . . . . . Robots Disrupted . | . . . . . Combat Hostiles . | . . . . . Robots Corrupted . | . . . . . Combat Hostiles . | . . . . . Parts Fried . | . . . . . Impact Corruptions . | . . . . . Robots Melted . | . . . . . Combat Hostiles . | . . . . . Parts Melted 6 | . 1 . . 5 Heat Transferred 2052 | 74 891 458 . 629 Parts Sabotaged . | . . . . . Parts Stolen . | . . . . . Parts Stripped . | . . . . . Power Chain Reactions . | . . . . . Alert | -11 -10 -10 -10 -9 ------- Run | Yrd Mat Min Exi Min Maximum Alert Level 1 | . . . . 1 Low Security (%) 94 | 100 100 100 . 67 Level 1 5 | . . . . 32 Level 2 . | . . . . . Level 3 . | . . . . . Level 4 . | . . . . . Level 5 . | . . . . . High Security . | . . . . . Max Security . | . . . . . Peak Influence 234 | 5 140 115 . 234 Initial 27 | . 3 27 . . Average 53 | . 50 33 . 136 Influence Increases 894 | 5 214 323 . 352 Destroy 0b10 Robot/C 580 | . 160 220 . 200 Destroy 0b10 Robot/NC 45 | 5 15 10 . 15 Destroy Leader 102 | . 32 40 . 30 Allied During Kill 4 | . . 4 . . Successful Hack 7 | . 7 . . . Disable Machine 15 | . . . . 15 Destroy Structure 66 | . . 4 . 62 Lose Combat Pursuer 75 | . . 45 . 30 Influence Decreases 692 | . 147 296 99 150 Entered New Map 146 | . 2 45 99 . Time Decay 466 | . 145 221 . 100 Lost Part 60 | . . 10 . 50 Lost Ally 20 | . . 20 . . Squads Dispatched 3 | . 1 . . 2 Investigation 2 | . 1 . . 1 Extermination . | . . . . . Reinforcement 1 | . . . . 1 Assault . | . . . . . Garrison . | . . . . . Intercept . | . . . . . Searches Triggered . | . . . . . Construction Impeded 1 | . . . . 1 Haulers Reinforced . | . . . . . Active Scanning Responses . | . . . . . Cargo Convoy Interrupts . | . . . . . Stealth | -11 -10 -10 -10 -9 --------- Run | Yrd Mat Min Exi Min Distress Signals . | . . . . . Communications Jammed . | . . . . . Distress Signals . | . . . . . Times Spotted 42 | . 11 14 . 17 Peak Tracking Total 11 | . 6 3 . 11 Tactical Retreats 3 | . . 2 . 1 Traps | -11 -10 -10 -10 -9 ------- Run | Yrd Mat Min Exi Min Traps Triggered 1 | . 1 . . . Indirectly . | . . . . . Trap Hack Attempts . | . . . . . Triggered . | . . . . . Disarmed . | . . . . . Reprogrammed . | . . . . . Reused . | . . . . . Traps Extracted . | . . . . . Installed . | . . . . . Triggered . | . . . . . Machines | -11 -10 -10 -10 -9 ---------- Run | Yrd Mat Min Exi Min Machines Disabled 1 | . . . . 1 Max in Single Turn 1 | . . . . 1 Machines Repaired . | . . . . . Machines Dismantled . | . . . . . Machines Sabotaged . | . . . . . Overloaded Fab Kills . | . . . . . Hacking | -11 -10 -10 -10 -9 --------- Run | Yrd Mat Min Exi Min Machines Accessed 4 | . 1 . 2 1 Terminals 1 | . 1 . . . Fabricators . | . . . . . Repair Stations . | . . . . . Recycling Units . | . . . . . Scanalyzers . | . . . . . Garrison Access . | . . . . . Total Hacks 5 | . 1 . 3 1 Successful 5 | . 1 . 3 1 Failed . | . . . . . Catastrophic . | . . . . . Database Lockouts . | . . . . . Manual 1 | . . . 1 . Terminals 1 | . 1 . . . Fabricators . | . . . . . Repair Stations . | . . . . . Recycling Units . | . . . . . Scanalyzers . | . . . . . Garrison Access . | . . . . . Terminal Hacks 5 | . 1 . 3 1 Record 2 | . . . 2 . Open Door 1 | . . . . 1 Branch Access Points 1 | . 1 . . . Proto ID Catalog 1 | . . . 1 . Fabricator Hacks . | . . . . . Repair Station Hacks . | . . . . . Recycling Unit Hacks . | . . . . . Scanalyzer . | . . . . . Garrison Access Hacks . | . . . . . Unauthorized Hacks . | . . . . . Terminals . | . . . . . Fabricators . | . . . . . Repair Stations . | . . . . . Recycling Units . | . . . . . Scanalyzers . | . . . . . Garrison Access . | . . . . . Data Cores Recovered . | . . . . . Used . | . . . . . Hacking Detections 1 | . 1 . . . Full Trace Events . | . . . . . Feedback Events . | . . . . . Feedback Blocked . | . . . . . Robot Schematics Acquired . | . . . . . Robots Built . | . . . . . Authchips . | . . . . . Time . | . . . . . Total Robot Build Rating . | . . . . . Part Schematics Acquired . | . . . . . Parts Built . | . . . . . Authchips . | . . . . . Time . | . . . . . Total Part Build Rating . | . . . . . Part Studies Acquired . | . . . . . Parts Repaired . | . . . . . Time . | . . . . . Parts Recycled . | . . . . . Recycled Matter . | . . . . . Retrieved Matter . | . . . . . Retrieved Components . | . . . . . Parts Scanalyzed . | . . . . . Part Schematics Acquired . | . . . . . Parts Damaged . | . . . . . Bothacking | -11 -10 -10 -10 -9 ------------ Run | Yrd Mat Min Exi Min Used RIF Installer . | . . . . . Robots Hacked . | . . . . . Non-combat . | . . . . . Combat . | . . . . . Robot Hacks Applied . | . . . . . Relay Couplers Released . | . . . . . Fabnet Peak Effective % . | . . . . . Robots Rewired . | . . . . . Allies Hacked . | . . . . . Hacks Repelled . | . . . . . Allies | -11 -10 -10 -10 -9 -------- Run | Yrd Mat Min Exi Min Total Allies 1 | . . 1 . . Largest Group 1 | . . 1 . . Highest-Rated Group 31 | . . 31 . . Highest-Rated Ally 31 | . . 31 . . Total Orders . | . . . . . Ally Attacks 10 | . . 10 . . Total Damage 129 | . . 129 . . Kills 3 | . . 3 . . Allies Corrupted . | . . . . . Allies Melted . | . . . . . Intel | -11 -10 -10 -10 -9 ------- Run | Yrd Mat Min Exi Min Active Infowar (turns) 1506 | . 352 571 382 201 Optics 1506 | . 352 571 382 201 Robot Analysis Total . | . . . . . Derelict Logs Recovered 3 | . . 3 . . Drone Launches . | . . . . . Drone Recoveries . | . . . . . Exploration | -11 -10 -10 -10 -9 ------------- Run | Yrd Mat Min Exi Min Turns Passed 1636 | 72 410 571 382 201 Spaces Moved 875 | 37 210 305 239 84 Core 14 | 3 . . . 11 Treads 791 | 34 210 305 239 3 Legs . | . . . . . Wheels 70 | . . . . 70 Hover . | . . . . . Flight . | . . . . . Fastest Speed 50 | 50 160 160 160 105 Average Speed 159 | 151 160 160 160 155 Slowest Speed 500 | 160 160 160 160 500 Overloaded Moves . | . . . . . Propulsion Burnouts . | . . . . . Robots Hopped . | . . . . . Potential Cave-ins . | . . . . . Cave-ins Triggered . | . . . . . Exploration Rate (%) 37 | 3 42 60 65 19 Regions Visited 4 Branch Regions 3 Pre-discovered Areas 2 | . . 1 1 . Known Exits Taken 1 | . 1 . . . Unknown Exits Taken 3 | 1 . 1 1 . Scrap Searched 1 | . . 1 . . Spaces Dug . | . . . . . Terrain Destroyed 113 | . . 4 . 109 Melee . | . . . . . Projectile . | . . . . . AOE 113 | . . 4 . 109 Terrain Rammed . | . . . . . Walls Destroyed . | . . . . . Machines Disabled . | . . . . . Actions | -11 -10 -10 -10 -9 --------- Run | Yrd Mat Min Exi Min Total 1016 | 46 247 365 239 119 Wait 56 | . 9 47 . . Move 871 | 36 209 304 238 84 Hop . | . . . . . Pick Up 10 | 2 4 1 1 2 Fast Attach 10 | 6 1 . . 3 Attach 3 | . . 1 . 2 Detach 2 | . . . . 2 Swap 2 | . 2 . . . Drop 2 | . 2 . . . Fire 60 | 2 20 12 . 26 Melee . | . . . . . Ram . | . . . . . Kick . | . . . . . Crush . | . . . . . Escape Stasis . | . . . . . Rewire . | . . . . . Trap . | . . . . . Miscellaneous . | . . . . . Route ------- -11/Scrapyard -10/Materials (discovered 3 exits: [*Mat] / *Min x2) -10/Mines (discovered 3 exits: [*Mat] / *Exi / [*Sub]) -10/Exiles (discovered 2 exits: *Min x2) -9/Mines History --------- Turn | Location | Event 43 | -11/Scrapyard | Discovered new exit (range 14) 73 | -11/Scrapyard | Entered Materials 94 | -10/Materials | Identified exit to Mines 300 | -10/Materials | Build established: Mutant 300 | -10/Materials | Discovered new exit (range 17) 483 | -10/Materials | Entered Mines 541 | -10/Mines | Learned Materials stockpile data 606 | -10/Mines | Discovered new exit (range 10) 714 | -10/Mines | Discovered new exit (range 9) 717 | -10/Mines | Received a Mining Laser from a helpful Derelict 718 | -10/Mines | Learned Materials terminal intel 868 | -10/Mines | Learned location of Mines (-9) 1010 | -10/Mines | Core integrity fell below 50% 1047 | -10/Mines | Deemed a non-threat by the Exiles lab entrance 1047 | -10/Mines | Discovered new exit (range 5) 1054 | -10/Mines | Entered Exiles 1075 | -10/Exiles | Discovered new exit (range 16) 1093 | -10/Exiles | Met 8R-AWN 1120 | -10/Exiles | Met EX-HEX 1166 | -10/Exiles | Met EX-BIN 1186 | -10/Exiles | Aligned with FarCom system 1187 | -10/Exiles | Given EX-Vault access code 1226 | -10/Exiles | Opened EX-Vault 1235 | -10/Exiles | Found Latent Energy Streamer 1267 | -10/Exiles | Warned to stay clear of 0b10 Research branches 1319 | -10/Exiles | Met EX-DEC 1345 | -10/Exiles | Learned location of Zion (-7) 1412 | -10/Exiles | Discovered new exit (range 17) 1436 | -10/Exiles | Left Exiles lab with Latent Energy Streamer 1436 | -10/Exiles | Entered Mines 1440 | -9/Mines | Met a Derelict bent on vengeance 1569 | -9/Mines | Core integrity fell below 20% 1604 | -9/Mines | Met a Derelict shopkeep closing up shop 1618 | -9/Mines | Assembled infested the area 1637 | -9/Mines | Destroyed by as-88550 with Assembled Rifle Last Messages --------------- >>Open Door Sealed Doors opened. 01604_ L4-RGB(g): "Sorry, the Unaware have moved into these parts and I'm closing up shop. No more sales from me!" 01605_ K-01 Serf collects debris. 01606_ ALERT: Derelict activity detected in mines. Dispatching investigation squad. 01608_ L4-RGB(g): "Take whatever you can and run for it!" 01609_ Acquired Remote Datajack. 01611_ Acquired Weapon Cycler. 01613_ K-01 Serf collects debris. 01618_ ALERT: Infestation in the mines, dispatching Demolisher response squad. 01634_ as-56391 destroyed. 01634_ Com. Wheel destroyed. 01634_ Destroyed Com. Wheel. 01634_ Wheel destroyed. 01634_ Destroyed Wheel. 01637_ T-07 Excavator destroyed. 01637_ as-46567 destroyed. Map ----- +----------------------------------------------------+ | | | | | | | | | | | | | ?????????????????????????????????????????????????? | | ?????????????????????????????????????????????????? | | ?????????????????????????????????????????????????? | | ?????????????????????????????????????????????????? | | ?????????????????????????????????????????????????? | | ?????????????????????????????????????????????????? | | ?????????????????????????????????????????????????? | | ??????????????????????????????????????###?????#### | | ?????????????????????????????????????gC #?????# | | ??????????????????????????????????????# #?????# ## | | ??????????????????????????????????????# #????????? | | ???????????????????????????????######?# #????????? | | ??????????????????????????????##""""### #????????? | | ??????????????????????????????#"| !"## #????????? | | ??????????????????????????????#"* ]"## #????????? | | ??????????????????????????????## ## ##???????? | | ??????????????????######??????### ## ### #???? | | ??????????????????# ?????# X #???? | | ??????????# ###### ###### ##??????? | | ??????????# aa a a @ ##?????? | | ??????????# ###### ###### ## ###???? | | ??????????????????## ##????## #### ##??? | | ???????????????????######???????#####??## ##?? | | ????????????????????????????????????????## ##? | | ?????????????????????????????????????????## #? | | ??????????????????????????????????????????# [ ## | | ??????????????????????????????????????????## ## | | ??????????????????????????????????????????### | | ??????????????????????????????????????????# [ | | ??????????????????????????????????????????# # | | ??????????????????????????????????????????# ! | | ?????????????????????????????????? ! # | | ??????????????????????????????# ## = | | ??????????????????????????????# ##??????# # | | ????????????????????????????????????????###### ### | | ?????????????????????????????????????????????###?? | | ?????????????????????????????????????????????????? | | ?????????????????????????????????????????????????? | | ?????????????????????????????????????????????????? | | ?????????????????????????????????????????????????? | | ?????????????????????????????????????????????????? | | ?????????????????????????????????????????????????? | | ?????????????????????????????????????????????????? | | ?????????????????????????????????????????????????? | +----------------------------------------------------+ Best States ------------- Heat Dissipation 25 Energy Generation 14 Energy Capacity 250 Matter Stores 300 Matter Capacity 300 Sight Range 18 Terrain Scan Density 10 Evasion (%) 40 Recoil Reduction 2 Item Schematics ----------------- None Robot Schematics ------------------ None Fabricated ------------ Nothing Repaired ---------- Nothing Studied --------- None Alien Tech Used ----------------- None Achievements -------------- None Challenges ------------ None Game ------ Seed DamperTowerThermoblaster Manual? 0 Play Time 00:11:26 Cumulative 27.9 hours Start 2025.11.05 @ 15:32:50 End 2025.11.05 @ 15:42:35 Sessions 1 Manual Loads 0 Difficulty Rogue Special Mode None Game No. 57 Rogue 57 Adventurer 0 Explorer 0 Win Type - Total 0 Types 0/0/0/0/0/0/0/0/0/0 Lore% 16 Gallery% 25 Achievement% 22 Wizard Run 0 Options --------- Layout 0 ASCII 1 Keyboard 1 Movement Numpad Keybinds 0 Fullscreen 1 Font 18/VGA_Max Map View 76x50 Zoom Use 0% Tactical HUD 1 Map Filters NONE Filters NONE Steam 1 RUN: 12839ad5-482a-4402-8a8a-4c189db9a407